{"text_format":"3","workbook":"xlsx","n_sheets":6,"sheets":["Cover Page","Preamble","P&G's","P&Gs and SHERQ","DGA ","Summary"],"not_rendered":{"images":1,"external_links":31,"defined_names":956},"read":"whole","date_system":"1900"}

{"sheet":"Cover Page","index":0,"n_rows":31,"n_cols":3,"rows_kept":31,"merged":[[1,1,1,2],[2,1,2,2]]}
[]
[null,"SUPPLY,\nINSTALLATION, TESTING AND\nCOMMISSIONING OF ONLINE\nDISSOLVED GAS ANALYSERS"]
[]
[null,"BILLS OF QUANTITIES"]
[]
[null,"REQUEST FOR TENDER"]
[]
[null,"ENQUIRY No."]
[]
[null,"TENDERER’S NAME:  "]
[]
[]
[]
[null,"THE PRICE:  IN ZAR",{"$f":"Summary!F7","v":0}]
[null,"(excluding VAT)"]
[null,"RAND VALUE IN WORDS"]
[]
[]
[]
[]
[null,"DATE :"]
[]
[null,"FULL NAMES OF SIGNATORY:"]
[]
[]
[]
[null,"DESIGNATION OF SIGNATORY:"]
[]
[]
[]
[null,"SIGNATURE :"]

{"sheet":"Preamble","index":1,"n_rows":43,"n_cols":2,"rows_kept":43}
[null,"ESKOM"]
[]
[null,"SUPPLY, INSTALLATION, TESTING AND  COMMISSIONING OF ONLINE DISSOLVED GAS ANALYSERS"]
[]
[null,"PREAMBLES"]
[]
[1,"The Tenderer is advised to read and understand all aspects and documentation associated with this Enquiry BEFORE inserting his Prices and or Rates and or Amounts. "]
[]
[2,"The bill of quantities provides the basis of all  valuations of the work, price adjustment (CPA) and general progress monitoring. "]
[]
[3,"The amount due at each application for payment is based  as measured in terms of the bill of quantities. The Contractor provides all  necessary  information which is required to determine amounts due at each application for payment relative to the completed works"]
[]
[4,"The total of the prices includes for all direct and indirect costs, overheads, profits, on costs, risks, liabilities, obligations, etc. relative to the contract."]
[]
[5,"All values are total values prior to any retention and excludes VAT. Retention is not calculated in the  forecast rate of payment Bill (FRP). "]
[]
[6,"Tenderer to check and take responsibility for all descriptions, formulae and structure of this file."]
[]
["A","GUIDANCE BEFORE PRICING AND MEASURING "]
[]
["B","METHOD OF MEASUREMENT "]
[]
[null,"Tenderers shall price the items, taking account all of the information within and associated with the tender documents and shall include for all matters, which are at the Contractors risk."]
[]
[null,"All enquiry documents supplied must be considered for pricing the items in the Bills of Quantities for the completion of the works."]
[]
[null,"Unless otherwise stated, items are measured net in accordance with the contract drawings, and no allowance has been made for waste or bulking or compaction or evaporation or loss by any means whatsoever."]
[]
[null,"The quantities contained in the bill of quantities are provisional, and  shall not be used for ordering purposes. No claims whatsoever, however arising will be entertained, should the bill of quantities have been used for ordering and or procurement purposes. "]
[]
["C","RATES AND PRICES"]
[]
[null,"Rates and Prices shall be expressed to two decimal places (i.e. cents) except in the case of a NIL rate or price."]
[]
[null,"The Tenderers Rates and Prices shall be inserted in the bill of quantities are deemed to be the fully inclusive Rates and Prices to the Employer for the work described under the several items. Such Rates and Prices shall cover all costs and expenses that may be required in, and for the prompt and efficient and safe execution of the work described, and shall cover the cost of all general risks, liabilities and obligations set  forth or implied in this Enquiry document."]
[]
[null,"Rates and Prices for items which are required to be inserted in the bill of quantities by the Tenderer and which have not been duly inserted, are deemed to be covered by other Rates and Prices in the bill of quantities. "]
[]
[null,"The Tenderers omission to insert Rates and Prices shall not be deemed to be a qualified exclusion to execute such work, activity or responsibility."]
[]
[null,"The Rates and Prices are deemed to include (unless otherwise specifically stated in the bill of quantities or herein) all the relevant costs associated with the Clauses of  Contract as amended and shall include but not be limited to the following cost components:"]
[]
[null," The Tenderer is deemed to have obtained all the necessary information required to adequately price the scope of work associated with this Enquiry and no claim shall be considered resulting from lack of knowledge in this respect."]

{"sheet":"P&G's","index":2,"n_rows":94,"n_cols":7,"rows_kept":94}
[null,"PAY REFERENCE","DESCRIPTION","UNIT","QTY","RATE","AMOUNT"]
[]
[null,null,"SECTION NO 1"]
[]
[null,"SANS 1200A","PRELIMINARY AND GENERAL "]
[]
[null,null,"(Applicable to the whole of the Works as per the Works "]
[null,null,"Information) "]
[]
[null,"SANS 1200A.8.3","FIXED CHARGE ITEMS "]
[]
[1,"SANS 1200A.8.3.1","Contractual requirements. ","Sum",1,null,{"$f":"E12*F12","v":0}]
[]
[null,"SANS 1200A.8.3.2","Establishment of Facilities on the Site "]
[]
[null,"SANS 1200A.8.3.2.2","Facilities for Contractor :"]
[]
[2,"SANS 1200A.8.3.2.2a","Offices and storage sheds.","Sum",1,null,{"$f":"E18*F18","v":0}]
[]
[3,"SANS 1200A.8.3.2.2d","Living accommodation. ","Sum",1,null,{"$f":"E20*F20","v":0}]
[]
[4,"SANS 1200A.8.3.2.2e","Ablution and latrine facilities (chemical portable","Sum",1,null,{"$f":"E22*F22","v":0}]
[null,null,"toilets to be well maintained / serviced for"]
[null,null,"duration of the contract)."]
[]
[5,"SANS 1200A.8.3.2.2f","Tools and equipment. ","Sum",1,null,{"$f":"E26*F26","v":0}]
[]
[6,"SANS 1200A.8.3.2.2g","Water supplies, electric power, compressed","Sum",1,null,{"$f":"E28*F28","v":0}]
[null,null,"air supply and communications (all to be"]
[null,null,"available from beginning of contract and for "]
[null,null,"duration of the contract)."]
[]
[7,"SANS 1200A.8.3.2.2i","Access to the site.","Sum",1,null,{"$f":"E33*F33","v":0}]
[]
[8,"SANS 1200A.8.3.3","Other Fixed-charged obligations. (Contractor to specify)","Sum",1,null,{"$f":"E35*F35","v":0}]
[]
[9,"SANS 1200A.8.3.4","Removal of site establishment. ","Sum",1,null,{"$f":"E37*F37","v":0}]
[]
[10,null,"Quality management (incl. Contractor's Quality Plans)","Sum",1,null,{"$f":"E39*F39","v":0}]
[null,null,"as outlined in the Works Information."]
[]
[11,null,"Safety management (incl. Contractor's Health and Safety Plans)","Sum",1,null,{"$f":"E42*F42","v":0}]
[null,null,"as outlined in the Works Information."]
[]
[12,null,"Environmental management (incl. Contractor's Environmental","Sum",1,null,{"$f":"E45*F45","v":0}]
[null,null,"Management Plan) as outlined in the Works Information."]
[]
[null,"SANS 1200A.8.4","TIME RELATED ITEMS "]
[]
[13,"SANS 1200A.8.4.1","Contractual requirements. ","Sum",1,null,{"$f":"E50*F50","v":0}]
[]
[null,"SANS 1200A.8.4.2","Operation and Maintenance of Facilities on"]
[null,null,"Site, for the Duration of Construction (unless"]
[null,null,"otherwise stated) "]
[]
[null,"SANS 1200A.8.4.2.2","Facilities for Contractor:"]
[]
[14,"SANS 1200A.8.4.2.2a","Offices and storage sheds. ","Sum",1,null,{"$f":"E58*F58","v":0}]
[]
[15,"SANS 1200A.8.4.2.2d","Living accommodation. ","Sum",1,null,{"$f":"E60*F60","v":0}]
[]
[16,"SANS 1200A.8.4.2.2e","Ablution and latrine facilities (chemical portable","Sum",1,null,{"$f":"E62*F62","v":0}]
[null,null,"toilets to be well maintained / serviced for "]
[null,null,"duration of the contract)."]
[]
[17,"SANS 1200A.8.4.2.2f","Tools and equipment. ","Sum",1,null,{"$f":"E66*F66","v":0}]
[]
[18,"SANS 1200A.8.4.2.2g","Water supplies, electric power, compressed","Sum",1,null,{"$f":"E68*F68","v":0}]
[null,null,"air supply and communications (all to be"]
[null,null,"available from beginning of contract and for"]
[null,null,"duration of the contract)."]
[]
[19,"SANS 1200A.8.4.2.2i","Access to the site.","Sum",1,null,{"$f":"E73*F73","v":0}]
[]
[20,"SANS 1200A.8.4.3","Supervision for duration of construction. ","Sum",1,null,{"$f":"E75*F75","v":0}]
[]
[21,"SANS 1200A.8.4.4","Company and head office overhead costs","Sum",1,null,{"$f":"E77*F77","v":0}]
[null,null,"for duration of construction. "]
[]
[22,"SANS 1200A.8.4.5","Other Time-related obligations. (Contractor to specify)","Sum",1,null,{"$f":"E80*F80","v":0}]
[]
[23,null,"Quality management (incl. Contractor's Quality Plans)","Sum",1,null,{"$f":"E82*F82","v":0}]
[null,null,"as outlined in the Works Information."]
[]
[24,null,"Safety management (incl. Contractor's Health and Safety Plans)","Sum",1,null,{"$f":"E85*F85","v":0}]
[null,null,"as outlined in the Works Information."]
[]
[25,null,"Environmental management (incl. Contractor's Environmental","Sum",1,null,{"$f":"E88*F88","v":0}]
[null,null,"Management Plan) as outlined in the Works Information."]
[]
[26,null,"Contractor's transport inclusive of all requirements. ","Sum",1,null,{"$f":"E91*F91","v":0}]
[]
[]
[null,null,"TOTAL - carried forward to FINAL SUMMARY",{"$nulls":3},{"$f":"SUM(G4:G93)","v":0}]

{"sheet":"P&Gs and SHERQ","index":3,"n_rows":24,"n_cols":7,"rows_kept":24,"hidden":true,"merged":[[22,1,22,5],[23,1,23,5]]}
["Item No","Payment Clause","Item Description","Unit","Quantity","Rate","Amount"]
[null,"SABS","SECTION NO. 1",{"$nulls":3},{"$f":"IFERROR(IF(E2>0,((F2)*E2),\"\"),\"\")","v":""}]
[null,null,"BILL NO. 1"]
[null,"1200A","PRELIMINARY AND GENERAL ",{"$nulls":3},{"$f":"IFERROR(IF(E4>0,((F4)*E4),\"\"),\"\")","v":""}]
[null,null,"(Applicable to the whole of the Works) ",{"$nulls":3},{"$f":"IFERROR(IF(E5>0,((F5)*E5),\"\"),\"\")","v":""}]
[]
[null,8.4,"TIME RELATED ITEMS ",{"$nulls":3},{"$f":"IFERROR(IF(E7>0,((F7)*E7),\"\"),\"\")","v":""}]
[{"$nulls":6},{"$f":"IFERROR(IF(E8>0,((F8)*E8),\"\"),\"\")","v":""}]
[1,"8.4.1","Contractual requirements. ","Sum",{"v":1,"d":"1.00"},null,{"$f":"IFERROR(IF(E9>0,((F9)*E9),\"\"),\"\")","v":0}]
[{"$nulls":6},{"$f":"IFERROR(IF(E10>0,((F10)*E10),\"\"),\"\")","v":""}]
[null,"8.4.2.2","Facilities for Contractor:"]
[{"$nulls":6},{"$f":"IFERROR(IF(E12>0,((F12)*E12),\"\"),\"\")","v":""}]
[2,"8.4.2.2.d","Living accommodation. ","Sum",{"v":1,"d":"1.00"},null,{"$f":"E13*F13","v":0}]
[{"$nulls":6},{"$f":"IFERROR(IF(E14>0,((F14)*E14),\"\"),\"\")","v":""}]
[null,"8.4.5","Other Time-Related  charges obligations. ",{"$nulls":3},{"$f":"IFERROR(IF(E15>0,((F15)*E15),\"\"),\"\")","v":""}]
[{"$nulls":6},{"$f":"IFERROR(IF(E16>0,((F16)*E16),\"\"),\"\")","v":""}]
[3,null,"Supervision for duration of construction. ","Sum",{"v":1,"d":"1.00"},null,{"$f":"IFERROR(IF(E17>0,((F17)*E17),\"\"),\"\")","v":0}]
[]
[null,null,"Safety, Health, Environment, Risk, and Quality."]
[]
[4,null,"SHERQ documentation management (Appointment of SAFETY OFFICER FULL TIME ON SITE Costs associated with the appointment of Safety personel and actual time spent on implementation, managing, documenting, monitoring, reviewing, internal  and external audits, incident investigations and mitigating safety related impacts) and Supply of all items of Personal Protective Clothing/Equipment & ensure use thereof for full compliance.","Sum",{"v":1,"d":"1.00"},null,{"$f":"F21*E21","v":0}]
[{"$nulls":6},{"$f":"IFERROR(IF(E22>0,((F22)*E22),\"\"),\"\")","v":""}]
[null,"Total For TIME Related",{"$nulls":4},{"$f":"SUM(G9:G22)","v":0}]
[null,"Total Carried Forward to Final Summary",{"$nulls":4},{"$f":"G23","v":0}]

{"sheet":"DGA ","index":4,"n_rows":33,"n_cols":10,"rows_kept":33,"merged":[[1,0,1,6],[2,3,2,6]]}
[]
[{"$f":"Preamble!B3","v":"SUPPLY, INSTALLATION, TESTING AND  COMMISSIONING OF ONLINE DISSOLVED GAS ANALYSERS"}]
[]
["ITEM NO.","PAY REFERENCE","DESCRIPTION","UNIT","QTY","Rate","Amount",null,null,false]
[null,null,"SECTION 2"]
[null,null,"BILL NO. 1"]
[null,null,"WORKS  "]
[]
[null,null,"Portable Dissolved Gas Anayser System"]
[]
[1,null,"Supply of Portable DGA( 9kg or less)","No.",6,null,{"$f":"F11*E11","v":0}]
[]
[2,null,"Testing of Portable DGA","Sum",6,null,{"$f":"F13*E13","v":0}]
[]
[3,null,"Hand Over all files, maintenance document and equipment manuals","Sum",1,null,{"$f":"F15*E15","v":0}]
[]
[4,null,"Complete training of site staff","Sum",1,null,{"$f":"F17*E17","v":0}]
[]
[5,null,"Delivery of  Portable DGA( 9kg or less) to Site","km",6696.7,null,{"$f":"F19*E19","v":0}]
[]
[null,null,"Permanently Fixed Dissolved Gas Anayser System"]
[]
[6,null,"Supply and Install Permanent Online DGA as per manufacturers instructions complete","No.",2,null,{"$f":"F23*E23","v":0}]
[]
[7,null,"Testing and Commissioning of DGA","Sum",2,null,{"$f":"F25*E25","v":0}]
[]
[8,null,"Hand Over all files, maintenance document and equipment manuals","Sum",1,null,{"$f":"F27*E27","v":0}]
[]
[9,null,"Complete training of site staff","Sum",1,null,{"$f":"F29*E29","v":0}]
[]
[10,null,"Delivery of Permanent Online DGA to Site","km",2294,null,{"$f":"F31*E31","v":0}]
[]
[null,null,"TOTAL - carried forward to section SUMMARY",{"$nulls":3},{"$f":"SUM(G5:G32)","v":0}]

{"sheet":"Summary","index":5,"n_rows":7,"n_cols":6,"rows_kept":7,"merged":[[0,2,0,4],[1,2,1,4],[2,2,2,4],[4,2,4,4],[5,2,5,4],[6,0,6,4],[7,2,7,4]]}
["Section \nNo.","Bill No.","Section Summary ",null,null,"Amount"]
[]
[1,1,"Preliminary and General",null,null,{"$f":"'P&G''s'!G94","v":0}]
[]
[2,1,"Works",null,null,{"$f":"'DGA '!G33","v":0}]
[]
["GRAND PROJECT TOTAL",{"$nulls":4},{"$f":"SUM(F2:F6)","v":0}]